Cogmind - Beta 11.1 @@@ ROGUE MODE // 2022.05.15 @ 16:20:38 Player: ktur Result: Destroyed by D-53 Grenadier with Mini Grenade Launcher Performance ------------- Evolutions (0) 0 Regions Visited (2) 400 Robots Destroyed (26) 130 Value Destroyed (560) 560 Prototype IDs (0) 0 Alien Tech Used (0) 0 Bonus (0) 0 TOTAL SCORE: 1090 Bonus ------- None Cogmind --------- Core Integrity 0/250 Matter 254/300 Energy 100/100 System Corruption 1% Temperature Cool (0) Movement Treading (240) Ox1 Location -10/Mines Parts ------- > --- POWER (1) -------- (None) > --- PROPULSION (2) --- Light Treads Light Treads > --- UTILITY (2) ------ High-capacity Storage Unit Improved Targeting Computer > --- WEAPON (2) ------- Shotgun > --- INVENTORY (20) --- Light Ion Engine Improved Hover Unit Improved Hover Unit Improved Hover Unit Improved Hover Unit Large Storage Unit Improved Targeting Computer Hardened Light Armor Plating Hardened Light Armor Plating Hacking Suite Hacking Suite Hacking Suite Decoy Drone Bay Light Assault Rifle Light Assault Rifle Shotgun Shotgun Mining Claw Peak State ------------ > --- POWER ------------ Ion Engine > --- PROPULSION ------- Light Treads Light Treads > --- UTILITY ---------- High-capacity Storage Unit Improved Targeting Computer > --- WEAPON ----------- Shotgun Shotgun > --- INVENTORY -------- Light Ion Engine Light Treads Improved Hover Unit Improved Hover Unit Improved Hover Unit Improved Hover Unit Large Storage Unit Improved Targeting Computer Hardened Light Armor Plating Hardened Light Armor Plating Hacking Suite Hacking Suite Hacking Suite Decoy Drone Bay Light Assault Rifle Light Assault Rifle Shotgun Shotgun Mining Claw [Rating: 14] Favorites ----------- Power Ion Engine Engine Ion Engine Propulsion Light Treads Treads Light Treads Utility High-capacity Storage Unit Storage High-capacity Storage Unit Processor Improved Targeting Computer Weapon Light Assault Rifle Ballistic Gun Light Assault Rifle Build | -11 -10 -10 ------- Run | Scr Mat Min Slots Evolved . | . . . Power . | . . . Propulsion . | . . . Utility . | . . . Weapon . | . . . Parts Attached 21 | 6 14 1 Power 3 | 1 2 . Engine 3 | 1 2 . Core . | . . . Reactor . | . . . Propulsion 7 | 2 4 1 Treads 7 | 2 4 1 Leg . | . . . Wheel . | . . . Hover . | . . . Flight . | . . . Utility 3 | 1 2 . Device . | . . . Storage 2 | 1 1 . Processor 1 | . 1 . Hackware . | . . . Protection . | . . . Artifact . | . . . Weapon 8 | 2 6 . Energy Gun . | . . . Energy Cannon . | . . . Ballistic Gun 8 | 2 6 . Ballistic Cannon . | . . . Launcher . | . . . Special Weapon . | . . . Impact Weapon . | . . . Slashing Weapon . | . . . Piercing Weapon . | . . . Special Melee Weapon . | . . . Unidentified Prototypes . | . . . Parts Lost 7 | . 4 3 Power 2 | . 1 1 Propulsion 2 | . 1 1 Utility . | . . . Weapon 3 | . 2 1 Highest Loss Streak 2 | . 1 2 To Critical Strikes . | . . . Average Slot Usage (%) 89 | . 89 90 Engine 6 | . 6 4 Treads 27 | . 27 28 Storage 17 | . 18 14 Processor 8 | . 7 14 Ballistic Gun 27 | . 27 28 Naked Turns . | . . . Heaviest Build 51 | 11 51 51 Greatest Support 40 | 40 40 40 Greatest Overweight (x) 2 | 2 2 1 Average Overweight (x) . | . . 1 Largest Inventory Capacity 20 | 8 20 20 Average Capacity 18 | 7 18 20 Most Carried 20 | 5 20 20 Average Carried 15 | 2 14 19 Final Capacity 20 | 8 20 20 Final Carried 20 | 5 20 19 Class Distribution -------------------- 100% | Mutant Dominant Class ---------------- Mutant | -10/Materials Mutant | -10/Mines Resources | -11 -10 -10 ----------- Run | Scr Mat Min Matter Collected 775 | 195 515 65 Remotely . | . . . Salvage Created 920 | . 870 50 Parts 57 | . 57 . Haulers Intercepted 1 | . 1 . Recyclers Shooed 7 | . 7 . Parts Field Recycled . | . . . Retrieved Matter . | . . . Parts Self-Destructed . | . . . Prevented . | . . . Kills | -11 -10 -10 ------- Run | Scr Mat Min Combat Hostiles Destroyed 22 | . 18 4 Guns 22 | . 18 4 Classes Destroyed 7 | . 6 1 Worker 1 | . 1 . Hauler 1 | . 1 . Recycler 2 | . 2 . Operator 4 | . 4 . Swarmer 6 | . 6 . Grunt 12 | . 12 . Assembled 4 | . . 4 Best Kill Streak 7 | . 7 4 Combat Bots Only 4 | . 3 4 Max Kills in Single Turn 2 | . 2 1 Gunslinging 1 | . 1 . Exploded . | . . . Melee . | . . . Uniques/NPCs Destroyed . | . . . Combat | -11 -10 -10 -------- Run | Scr Mat Min Damage Taken 1566 | . 1070 496 Core 286 | . 191 95 Absorbed by Shields . | . . . Regen/Repaired (Parts) 188 | . 188 . Core Remaining (%) 100 | 100 . . Volleys Fired 134 | . 121 13 Largest 2 | . 2 2 Hottest 46 | . 46 46 Shots Fired 262 | . 237 25 Gun 262 | . 237 25 Cannon . | . . . Launcher . | . . . Special . | . . . Kinetic 262 | . 237 25 Thermal . | . . . Explosive . | . . . Electromagnetic . | . . . Robot Hit Streak 12 | . 12 5 Robot Miss Streak 6 | . 6 4 Penetration Max . | . . . Secondary Targets 2 | . 1 1 Max Gunslinging Chain 1 | . 1 1 Shots Hit Robots 173 | . 152 21 Core Hits 63 | . 53 10 Critical Kills . | . . . Critical Parts Destroyed . | . . . Critical Strikes . | . . . Melee Attacks . | . . . Impact . | . . . Slashing . | . . . Piercing . | . . . Sneak Attacks . | . . . Combat Hostiles . | . . . Follow-up Attacks . | . . . Damage Inflicted 1756 | . 1458 298 Guns 1726 | . 1429 297 Cannons . | . . . Explosions . | . . . Melee . | . . . Ramming 30 | . 29 1 Kinetic 1726 | . 1429 297 Thermal . | . . . Explosive . | . . . Electromagnetic . | . . . Impact . | . . . Slashing . | . . . Piercing . | . . . Highest Corruption 1 | . . 1 Average Corruption 1 | . . 1 Corruption Purged . | . . . Corruption Blocked . | . . . Effects 4 | . . 4 Matter Fused 2 | . . 2 Heat Flow Errors 1 | . . 1 Data Loss (minor) 1 | . . 1 Overload Shots . | . . . Overflow Damage . | . . . Projectiles . | . . . Explosions . | . . . Melee . | . . . Knockbacks . | . . . Impact . | . . . Kinetic . | . . . Secondary . | . . . Self-Inflicted Damage . | . . . Shots . | . . . Rammed 8 | . 7 1 Targets Rammed 9 | . 8 1 Kicked . | . . . Crushed 1 | . 1 . Highest Temperature 112 | . 28 112 Average Temperature 11 | . 7 48 Received Heat Transfer 433 | . 393 40 Siege Activations . | . . . Robots Corrupted . | . . . Combat Hostiles . | . . . Parts Fried . | . . . Impact Corruptions . | . . . Robots Melted . | . . . Combat Hostiles . | . . . Parts Melted . | . . . Heat Transferred . | . . . Parts Sabotaged . | . . . Parts Stolen . | . . . Parts Stripped . | . . . Power Chain Reactions . | . . . Missiles Intercepted . | . . . Alert | -11 -10 -10 ------- Run | Scr Mat Min Peak Influence 328 | . 328 45 Initial 45 | . . 45 Average 102 | . 123 33 Maximum Alert Level 1 | . 1 . Low Security (%) 88 | 100 85 100 Level 1 11 | . 14 . Level 2 . | . . . Level 3 . | . . . Level 4 . | . . . Level 5 . | . . . High Security . | . . . Max Security . | . . . Squads Dispatched 5 | . 5 . Investigation 1 | . 1 . Extermination . | . . . Reinforcement 4 | . 4 . Assault . | . . . Garrison . | . . . Intercept . | . . . Searches Triggered . | . . . Construction Impeded . | . . . Haulers Reinforced . | . . . Active Scanning Responses . | . . . Cargo Convoy Interrupts . | . . . Stealth | -11 -10 -10 --------- Run | Scr Mat Min Distress Signals 5 | . 5 . Communications Jammed . | . . . Distress Signals . | . . . Times Spotted 66 | . 50 16 Peak Tracking Total 19 | . 6 19 Tactical Retreats 6 | . 5 1 Traps | -11 -10 -10 ------- Run | Scr Mat Min Traps Triggered 1 | . 1 . Indirectly . | . . . Trap Hack Attempts . | . . . Triggered . | . . . Disarmed . | . . . Reprogrammed . | . . . Reused . | . . . Traps Extracted . | . . . Installed . | . . . Triggered . | . . . Machines | -11 -10 -10 ---------- Run | Scr Mat Min Machines Disabled . | . . . Max in Single Turn . | . . . Machines Sabotaged . | . . . Garrisons Compromised . | . . . Overloaded Fab Kills . | . . . Hacking | -11 -10 -10 --------- Run | Scr Mat Min Machines Accessed 4 | . 3 1 Terminals 1 | . 1 . Fabricators . | . . . Repair Stations 1 | . 1 . Recycling Units 1 | . 1 . Scanalyzers . | . . . Garrison Access . | . . . Total Hacks 15 | . 14 1 Successful 7 | . 6 1 Failed 8 | . 8 . Catastrophic . | . . . Database Lockouts . | . . . Manual 6 | . 6 . Terminals 6 | . 6 . Fabricators . | . . . Repair Stations 6 | . 6 . Recycling Units 2 | . 2 . Scanalyzers . | . . . Garrison Access . | . . . Terminal Hacks 1 | . . 1 Open Door 1 | . . 1 Fabricator Hacks . | . . . Repair Station Hacks 4 | . 4 . Scan Component 2 | . 2 . Repair 2 | . 2 . Recycling Unit Hacks 1 | . 1 . Retrieve Components 1 | . 1 . Scanalyzer . | . . . Garrison Access Hacks . | . . . Unauthorized Hacks 1 | . 1 . Terminals 1 | . 1 . Operators 1 | . 1 . Fabricators . | . . . Repair Stations . | . . . Recycling Units . | . . . Scanalyzers . | . . . Garrison Access . | . . . Data Cores Recovered . | . . . Used . | . . . Hacking Detections 2 | . 2 . Full Trace Events . | . . . Feedback Events . | . . . Feedback Blocked . | . . . Robot Schematics Acquired . | . . . Robots Built . | . . . Authchips . | . . . Time . | . . . Total Robot Build Rating . | . . . Part Schematics Acquired . | . . . Parts Built . | . . . Authchips . | . . . Time . | . . . Total Part Build Rating . | . . . Parts Repaired 2 | . 2 . Time 52 | . 52 . Parts Recycled . | . . . Recycled Matter . | . . . Retrieved Matter . | . . . Retrieved Components 10 | . 10 . Parts Scanalyzed . | . . . Part Schematics Acquired . | . . . Parts Damaged . | . . . Bothacking | -11 -10 -10 ------------ Run | Scr Mat Min Used RIF Installer . | . . . Robots Hacked . | . . . Non-combat . | . . . Combat . | . . . Robot Hacks Applied . | . . . Relay Couplers Released . | . . . Fabnet Peak Effective % . | . . . Robots Rewired . | . . . Allies Hacked . | . . . Hacks Repelled . | . . . Allies | -11 -10 -10 -------- Run | Scr Mat Min Total Allies . | . . . Largest Group . | . . . Highest-Rated Group . | . . . Highest-Rated Ally . | . . . Total Orders . | . . . Ally Attacks . | . . . Total Damage . | . . . Kills . | . . . Allies Corrupted . | . . . Allies Melted . | . . . Intel | -11 -10 -10 ------- Run | Scr Mat Min Robot Analysis Total . | . . . Derelict Logs Recovered 1 | . . 1 Drone Launches . | . . . Drone Recoveries . | . . . Exploration | -11 -10 -10 ------------- Run | Scr Mat Min Turns Passed 2465 | 78 1919 468 Spaces Moved 840 | 47 641 152 Core 10 | 10 . . Treads 830 | 37 641 152 Legs . | . . . Wheels . | . . . Hover . | . . . Flight . | . . . Fastest Speed 50 | 50 160 240 Average Speed 224 | 138 227 240 Slowest Speed 320 | 160 320 240 Overloaded Moves . | . . . Propulsion Burnouts . | . . . Robots Hopped . | . . . Cave-ins Triggered . | . . . Exploration Rate (%) 40 | 4 84 34 Regions Visited 2 Branch Regions 1 Pre-discovered Areas . | . . . Known Exits Taken . | . . . Unknown Exits Taken 2 | 1 1 . Scrap Searched . | . . . Spaces Dug . | . . . Terrain Destroyed . | . . . Melee . | . . . Projectile . | . . . AOE . | . . . Terrain Rammed . | . . . Walls Destroyed . | . . . Machines Disabled . | . . . Actions | -11 -10 -10 --------- Run | Scr Mat Min Total 1180 | 57 893 230 Wait 135 | . 75 60 Move 838 | 46 640 152 Hop . | . . . Pick Up 31 | 5 25 1 Fast Attach 12 | 6 6 . Attach 5 | . 4 1 Detach . | . . . Swap 4 | . 4 . Drop 12 | . 10 2 Fire 134 | . 121 13 Melee . | . . . Ram . | . . . Kick . | . . . Crush 9 | . 8 1 Escape Stasis . | . . . Rewire . | . . . Trap . | . . . Miscellaneous . | . . . Route ------- -11/Scrapyard -10/Materials (discovered 4 exits: [*Mat x3] / *Min) -10/Mines History --------- Turn | Location | Event 10 | -11/Scrapyard | Discovered new exit (range 15) 79 | -11/Scrapyard | Entered Materials 308 | -10/Materials | Build established: Mutant 507 | -10/Materials | Discovered new exit (range 16) 787 | -10/Materials | Discovered new exit (range 8) 797 | -10/Materials | Core integrity fell below 50% 911 | -10/Materials | Repaired Lgt. Treads 938 | -10/Materials | Repaired Lgt. Assault Rifle 1057 | -10/Materials | Discovered new exit (range 6) 1792 | -10/Materials | Discovered new exit (range 16) 1998 | -10/Materials | Entered Mines 2028 | -10/Mines | Found the Drone Emporium 2045 | -10/Mines | Found Prototype Device 2106 | -10/Mines | Learned Materials terminal intel 2129 | -10/Mines | Assembled infested the area 2134 | -10/Mines | Assisted by a Guerilla fighting off Assembled 2157 | -10/Mines | Core integrity fell below 20% 2466 | -10/Mines | Destroyed by D-53 Grenadier with Mini Grenade Launcher Last Messages --------------- 02178_ as-11950 destroyed. 02179_ Acquired 16 matter. 02184_ as-03934 destroyed. 02198_ System corrupted: Matter fused (-6). 02201_ K-01 Serf collects debris. 02223_ R-06 Scavenger collects Lgt. Armor Plating. 02289_ K-01 Serf collects debris. 02324_ Acquired 12 matter. 02326_ Acquired 8 matter. 02327_ U-05 Engineer builds a Wall. 02338_ System corrupted: Component data lost. 02348_ Acquired 15 matter. 02348_ U-05 Engineer lays Concrete. 02352_ U-05 Engineer builds a Wall. 02353_ U-05 Engineer lays Concrete. 02355_ K-01 Serf collects debris. 02357_ U-05 Engineer builds a Wall. 02376_ System corrupted: Heat flow error (+137). 02460_ Lgt. Treads destroyed. 02464_ Shotgun destroyed. Map ----- +----------------------------------------------------+ | ?????????????????????????????????????????????????? | | ?????????????????????????????????????????????????? | | ?????????????????????????????????????????????????? | | ?????????????????????????????????????????????????? | | ?????????????????????????????????????????????????? | | ?????????????????????????????????????????????????? | | ?????????????????????????????????????????????????? | | ?????????????????????????????????????????????????? | | ?????????????????????????????????????????????????? | | ?????????????????????????????????????????????????? | | ?????????????????????????????????????????????????? | | ?????????????????????????????????????????????????? | | ?????????????????? ????????????????????????????? | | ???????????????? %???????????????????????????? | | ??????????????< u ???????????????????????????? | | ??????????????? r #??????????????????????????? | | ???????????????# k#?????????????????????????? | | ???????????????# u ?????????????????????????? | | ????????????????# ?????????????????????????? | | ????????????????# ##???????????????????????? | | ???????????????## % % ####????????????????????? | | ?????????????### %% ##???????????????????? | | ?????????????? r ####????????????????? | | ????????????????? d #????????????????? | | ????????????????????# % #????????????????? | | ??????????????????????# @ ## ####?????????????? | | ????????????????????# # #??############ | | ????????????????????## #### #??# | | ?????????????????????# #?# #??# | | ?????????????????????# # ##?# #??# | | ?????????????????????# ## ### #?# #??# | | ?????????????????????# # ###### #??# | | ?????????????????????# ## #??# | | ??????????????????????## ##### #??# | | ??????????????????????## #???# #??# | | ???????????????????????## #???# #??# | | ????????????????????????# ##???# #??# | | ????????????????????????# ###????# #??# | | ????????????????????????# #??????# #### | | ?????????????????####???# #??????# | | ???????????????### ##??# #??????# | | ???????????##### #### #??????###### | | ??????????## #?????####### | | ?????????## ######????##""## | | ?????????# ##?????????#" #X | | ?????????# """ ###??????????#" | | ?????????# """ ##????????????#" | | ?????????## """ ##????????????#"! # | | ??????????## #????????????##""## | | ???????????## #?????????????####### | +----------------------------------------------------+ Best States ------------- Heat Dissipation 25 Energy Generation 10 Energy Capacity 250 Matter Stores 300 Matter Capacity 300 Sight Range 16 Terrain Scan Density 10 Evasion (%) 50 Targeting Accuracy 6 Recoil Reduction 2 Item Schematics ----------------- None Robot Schematics ------------------ None Fabricated ------------ Nothing Alien Tech Used ----------------- None Achievements -------------- None Challenges ------------ None Game ------ Seed HoverEnhancedDisintegrator Manual? 0 Play Time 00:10:22 Cumulative 409.4 hours Start 2022.05.15 @ 16:12:07 End 2022.05.15 @ 16:20:38 Sessions 1 Manual Loads 0 Difficulty Rogue Special Mode None Game No. 407 Rogue 407 Adventurer 0 Explorer 0 Win Type - Total 21 Types 13/2/3/2/0/0/0/1/0 Lore% 92 Gallery% 90 Achievement% 76 Wizard Run 0 Options --------- ASCII 0 Keyboard 0 Movement Arrows Keybinds 0 Fullscreen 1 Font 18/Smallcaps Map View 76x50 Tactical HUD 1 Map Filters NONE Filters NONE Steam 1 RUN: bb1ce92f-4afc-4c9d-9d80-86b406b131e3